[Event "Titled Tuesday Blitz July 25 Late 2023"]
[White "Moore, Nicholas"]
[Black "Suvorov, Alexander"]
[WhiteFideId "4303709"]
[BlackFideId "12977063"]
[WhiteElo "2441"]
[BlackElo "2606"]
[Result "1-0"]
[Round "3"]
[TimeControl "180+2"]
[Date "2023.07.25"]
[WhiteClock "0:00:11"]
[BlackClock "0:00:07"]
[Board "86"]

1. c4 {[%clk 0:03:00]}  e5 {[%clk 0:02:56]} 2. g3 {[%clk 0:02:59]}  Nc6 {[%clk 0:02:55]} 3. Bg2 {[%clk 0:02:50]}  Bc5 {[%clk 0:02:55]} 4. Nc3 {[%clk 0:02:48]}  a6 {[%clk 0:02:55]} 5. e3 {[%clk 0:02:48]}  d6 {[%clk 0:02:55]} 6. Nge2 {[%clk 0:02:47]}  Ba7 {[%clk 0:02:55]} 7. O-O {[%clk 0:02:46]}  h5 {[%clk 0:02:55]} 8. d4 {[%clk 0:02:44]}  h4 {[%clk 0:02:42]} 9. Re1 {[%clk 0:02:25]}  Nge7 {[%clk 0:02:15]} 10. Rb1 {[%clk 0:02:23]}  Bg4 {[%clk 0:02:11]} 11. h3 {[%clk 0:02:12]}  Bf5 {[%clk 0:02:06]} 12. e4 {[%clk 0:02:12]}  exd4 {[%clk 0:01:59]} 13. exf5 {[%clk 0:02:12]}  dxc3 {[%clk 0:02:00]} 14. g4 {[%clk 0:02:01]}  cxb2 {[%clk 0:01:52]} 15. Bxb2 {[%clk 0:01:56]}  O-O {[%clk 0:01:45]} 16. f6 {[%clk 0:01:43]}  Ng6 {[%clk 0:01:46]} 17. fxg7 {[%clk 0:01:37]}  Re8 {[%clk 0:01:46]} 18. Qd2 {[%clk 0:01:36]}  Kh7 {[%clk 0:01:33]} 19. Nf4 {[%clk 0:01:21]}  Qg5 {[%clk 0:01:27]} 20. Be4 {[%clk 0:00:45]}  Rxe4 {[%clk 0:00:59]} 21. Rxe4 {[%clk 0:00:44]}  Nce5 {[%clk 0:00:59]} 22. Kg2 {[%clk 0:00:32]}  Re8 {[%clk 0:00:52]} 23. Rbe1 {[%clk 0:00:25]}  Bc5 {[%clk 0:00:41]} 24. Bc1 {[%clk 0:00:24]}  Nxg4 {[%clk 0:00:25]} 25. hxg4 {[%clk 0:00:20]}  Qxg4+ {[%clk 0:00:26]} 26. Kf1 {[%clk 0:00:17]}  Rxe4 {[%clk 0:00:21]} 27. Rxe4 {[%clk 0:00:16]}  Qf3 {[%clk 0:00:22]} 28. Re8 {[%clk 0:00:12]}  Ne5 {[%clk 0:00:07]} 29. g8=Q+ {[%clk 0:00:11]} 1-0


[Site "https://www.chess.com"]

[Event "Titled Tuesday Blitz July 25 Late 2023"]
[White "Sivakumar, Shaashwath"]
[Black "Jorajuria Mendoza, Algol"]
[WhiteFideId "30912156"]
[BlackFideId "5128897"]
[WhiteElo "2593"]
[BlackElo "2433"]
[Result "1-0"]
[Round "3"]
[TimeControl "180+2"]
[Date "2023.07.25"]
[WhiteClock "0:02:43"]
[BlackClock "0:02:33"]
[Board "92"]

1. d4 {[%clk 0:03:00]}  d5 {[%clk 0:02:59]} 2. c4 {[%clk 0:02:57]}  e6 {[%clk 0:02:59]} 3. Nc3 {[%clk 0:02:56]}  Bb4 {[%clk 0:02:58]} 4. cxd5 {[%clk 0:02:55]}  exd5 {[%clk 0:02:58]} 5. Bf4 {[%clk 0:02:53]}  Nf6 {[%clk 0:02:55]} 6. e3 {[%clk 0:02:53]}  c5 {[%clk 0:02:55]} 7. dxc5 {[%clk 0:02:51]}  Qa5 {[%clk 0:02:46]} 8. Bd3 {[%clk 0:02:44]}  Bxc3+ {[%clk 0:02:43]} 9. bxc3 {[%clk 0:02:45]}  Qxc3+ {[%clk 0:02:43]} 10. Kf1 {[%clk 0:02:45]}  Qxc5 {[%clk 0:02:33]} 11. Rc1 {[%clk 0:02:43]} 1-0


[Site "https://www.chess.com"]

[Event "Titled Tuesday Blitz July 25 Late 2023"]
[White "Arnold, Ken"]
[Black "Krishnan, Varun"]
[WhiteFideId "2056836"]
[BlackFideId "5054508"]
[WhiteElo "2432"]
[BlackElo "2591"]
[Result "1-0"]
[Round "3"]
[TimeControl "180+2"]
[Date "2023.07.25"]
[WhiteClock "0:01:34"]
[BlackClock "0:00:00"]
[Board "93"]

1. d4 {[%clk 0:03:00]}  c6 {[%clk 0:03:00]} 2. c4 {[%clk 0:03:00]}  Qa5+ {[%clk 0:02:59]} 3. Nc3 {[%clk 0:02:58]}  Qh5 {[%clk 0:02:54]} 4. e4 {[%clk 0:02:56]}  Qxd1+ {[%clk 0:02:53]} 5. Nxd1 {[%clk 0:02:56]}  d6 {[%clk 0:02:45]} 6. Nc3 {[%clk 0:02:55]}  Nf6 {[%clk 0:02:45]} 7. f3 {[%clk 0:02:55]}  g6 {[%clk 0:02:45]} 8. Be3 {[%clk 0:02:55]}  Bg7 {[%clk 0:02:46]} 9. Bd3 {[%clk 0:02:55]}  O-O {[%clk 0:02:46]} 10. Nge2 {[%clk 0:02:55]}  Nbd7 {[%clk 0:02:42]} 11. Rc1 {[%clk 0:02:55]}  e5 {[%clk 0:02:41]} 12. d5 {[%clk 0:02:55]}  cxd5 {[%clk 0:02:34]} 13. Nxd5 {[%clk 0:02:54]}  Nxd5 {[%clk 0:02:33]} 14. cxd5 {[%clk 0:02:54]}  b6 {[%clk 0:02:14]} 15. Bb5 {[%clk 0:02:52]}  Nc5 {[%clk 0:02:06]} 16. b4 {[%clk 0:02:50]}  Nb7 {[%clk 0:02:06]} 17. Ba6 {[%clk 0:02:46]}  Rb8 {[%clk 0:01:53]} 18. Kd2 {[%clk 0:02:39]}  f5 {[%clk 0:01:47]} 19. Rc7 {[%clk 0:02:36]}  fxe4 {[%clk 0:01:30]} 20. fxe4 {[%clk 0:02:34]}  Nc5 {[%clk 0:00:42]} 21. bxc5 {[%clk 0:02:32]}  Bxa6 {[%clk 0:00:41]} 22. cxd6 {[%clk 0:02:32]}  Rbd8 {[%clk 0:00:37]} 23. Rhc1 {[%clk 0:02:26]}  Rxd6 {[%clk 0:00:34]} 24. Rxa7 {[%clk 0:02:26]}  Bb5 {[%clk 0:00:31]} 25. Rcc7 {[%clk 0:02:24]}  Bf6 {[%clk 0:00:28]} 26. a4 {[%clk 0:02:09]}  Be8 {[%clk 0:00:27]} 27. Bh6 {[%clk 0:01:58]}  Rf7 {[%clk 0:00:22]} 28. Rxf7 {[%clk 0:01:58]}  Bxf7 {[%clk 0:00:22]} 29. Ra8+ {[%clk 0:01:58]}  Rd8 {[%clk 0:00:21]} 30. Rxd8+ {[%clk 0:01:57]}  Bxd8 {[%clk 0:00:22]} 31. Be3 {[%clk 0:01:56]}  Be8 {[%clk 0:00:22]} 32. Nc3 {[%clk 0:01:56]}  Kf7 {[%clk 0:00:22]} 33. Kd3 {[%clk 0:01:55]}  g5 {[%clk 0:00:18]} 34. Nb5 {[%clk 0:01:51]}  Bxb5+ {[%clk 0:00:17]} 35. axb5 {[%clk 0:01:51]}  h6 {[%clk 0:00:17]} 36. h4 {[%clk 0:01:43]}  gxh4 {[%clk 0:00:16]} 37. Bxh6 {[%clk 0:01:42]}  Ke8 {[%clk 0:00:15]} 38. Ke2 {[%clk 0:01:41]}  Kd7 {[%clk 0:00:14]} 39. Kf3 {[%clk 0:01:42]}  Be7 {[%clk 0:00:14]} 40. Kg4 {[%clk 0:01:41]}  Kd6 {[%clk 0:00:13]} 41. Be3 {[%clk 0:01:41]}  Bd8 {[%clk 0:00:12]} 42. Kf5 {[%clk 0:01:41]}  Bc7 {[%clk 0:00:10]} 43. Bf2 {[%clk 0:01:38]}  Bd8 {[%clk 0:00:09]} 44. Kg4 {[%clk 0:01:38]}  Bc7 {[%clk 0:00:06]} 45. Kxh4 {[%clk 0:01:34]}  Bd8+ {[%clk 0:00:03]} 46. Kg4 {[%clk 0:01:34]}  Bf6 {[%clk 0:00:02]} 47. Kf5 {[%clk 0:01:34]}  Bg7 {[%clk 0:00:02]} 48. Bxb6 {[%clk 0:01:34]}  Bh6 {[%clk 0:00:02]} 49. Bf2 {[%clk 0:01:33]}  Bd2 {[%clk 0:00:02]} 50. g4 {[%clk 0:01:33]}  Bf4 {[%clk 0:00:02]} 51. g5 {[%clk 0:01:33]}  Ke7 {[%clk 0:00:00]} 52. g6 {[%clk 0:01:34]} 1-0


[Site "https://www.chess.com"]

[Event "Titled Tuesday Blitz July 25 Late 2023"]
[White "Barria Santos, Jose Guilherme"]
[Black "Krzywda, Andrzej"]
[WhiteFideId "1939300"]
[BlackFideId "1114565"]
[WhiteElo "2584"]
[BlackElo "2432"]
[Result "1-0"]
[Round "3"]
[TimeControl "180+2"]
[Date "2023.07.25"]
[WhiteClock "0:01:13"]
[BlackClock "0:00:10"]
[Board "94"]

1. e4 {[%clk 0:02:54]}  e5 {[%clk 0:03:00]} 2. Nf3 {[%clk 0:02:53]}  Nf6 {[%clk 0:03:00]} 3. Nc3 {[%clk 0:02:50]}  Bb4 {[%clk 0:03:00]} 4. Nxe5 {[%clk 0:02:45]}  O-O {[%clk 0:03:00]} 5. Nd3 {[%clk 0:02:40]}  Bxc3 {[%clk 0:03:00]} 6. dxc3 {[%clk 0:02:41]}  Nxe4 {[%clk 0:03:01]} 7. Be2 {[%clk 0:02:42]}  Re8 {[%clk 0:03:01]} 8. O-O {[%clk 0:02:42]}  d6 {[%clk 0:03:01]} 9. Bf3 {[%clk 0:02:39]}  Nd7 {[%clk 0:02:59]} 10. Re1 {[%clk 0:02:39]}  Ndc5 {[%clk 0:02:57]} 11. Nxc5 {[%clk 0:02:38]}  Nxc5 {[%clk 0:02:57]} 12. Be3 {[%clk 0:02:37]}  c6 {[%clk 0:02:32]} 13. Qd4 {[%clk 0:02:31]}  Ne6 {[%clk 0:02:15]} 14. Qd2 {[%clk 0:02:23]}  d5 {[%clk 0:02:14]} 15. Rad1 {[%clk 0:02:18]}  Qf6 {[%clk 0:02:13]} 16. b3 {[%clk 0:02:09]}  b6 {[%clk 0:01:55]} 17. c4 {[%clk 0:02:08]}  Bb7 {[%clk 0:01:47]} 18. cxd5 {[%clk 0:02:06]}  cxd5 {[%clk 0:01:48]} 19. Bxd5 {[%clk 0:01:55]}  Rad8 {[%clk 0:01:46]} 20. c4 {[%clk 0:01:55]}  Rd7 {[%clk 0:01:45]} 21. Qc2 {[%clk 0:01:47]}  Red8 {[%clk 0:01:34]} 22. Bxb7 {[%clk 0:01:45]}  Rxb7 {[%clk 0:01:35]} 23. Rxd8+ {[%clk 0:01:45]}  Qxd8 {[%clk 0:01:35]} 24. Bc1 {[%clk 0:01:35]}  Rd7 {[%clk 0:01:32]} 25. Bb2 {[%clk 0:01:36]}  Qg5 {[%clk 0:01:18]} 26. Qc3 {[%clk 0:01:27]}  h6 {[%clk 0:01:10]} 27. g3 {[%clk 0:01:26]}  Qg4 {[%clk 0:00:59]} 28. b4 {[%clk 0:01:19]}  Rd4 {[%clk 0:00:35]} 29. Rxe6 {[%clk 0:01:14]}  fxe6 {[%clk 0:00:10]} 30. Qxd4 {[%clk 0:01:13]} 1-0


[Site "https://www.chess.com"]

[Event "Titled Tuesday Blitz July 25 Late 2023"]
[White "Silva Lucena, Cristian"]
[Black "Hajiyev, Kanan"]
[WhiteFideId "2232588"]
[BlackFideId "13404148"]
[WhiteElo "2432"]
[BlackElo "2580"]
[Result "0-1"]
[Round "3"]
[TimeControl "180+2"]
[Date "2023.07.25"]
[WhiteClock "0:00:42"]
[BlackClock "0:00:07"]
[Board "95"]

1. e4 {[%clk 0:02:52]}  c6 {[%clk 0:03:00]} 2. d4 {[%clk 0:02:50]}  d5 {[%clk 0:03:01]} 3. e5 {[%clk 0:02:51]}  a6 {[%clk 0:03:01]} 4. c3 {[%clk 0:02:44]}  Bf5 {[%clk 0:03:00]} 5. h4 {[%clk 0:02:43]}  h5 {[%clk 0:02:59]} 6. Bd3 {[%clk 0:02:43]}  Bxd3 {[%clk 0:02:58]} 7. Qxd3 {[%clk 0:02:44]}  e6 {[%clk 0:02:59]} 8. Bg5 {[%clk 0:02:43]}  Qb6 {[%clk 0:02:59]} 9. Nd2 {[%clk 0:02:43]}  c5 {[%clk 0:02:58]} 10. c4 {[%clk 0:02:41]}  Ne7 {[%clk 0:02:43]} 11. dxc5 {[%clk 0:02:33]}  Qxc5 {[%clk 0:02:37]} 12. Bxe7 {[%clk 0:02:33]}  Bxe7 {[%clk 0:02:33]} 13. cxd5 {[%clk 0:02:33]}  Qxd5 {[%clk 0:02:28]} 14. Qxd5 {[%clk 0:02:34]}  exd5 {[%clk 0:02:29]} 15. Ngf3 {[%clk 0:02:33]}  Nc6 {[%clk 0:02:29]} 16. O-O-O {[%clk 0:02:32]}  Rc8 {[%clk 0:02:24]} 17. Kb1 {[%clk 0:02:30]}  O-O {[%clk 0:02:17]} 18. Nb3 {[%clk 0:02:28]}  Rfd8 {[%clk 0:02:16]} 19. a3 {[%clk 0:02:27]}  f6 {[%clk 0:01:58]} 20. Rhe1 {[%clk 0:02:16]}  fxe5 {[%clk 0:01:53]} 21. Nxe5 {[%clk 0:02:12]}  Bxh4 {[%clk 0:01:52]} 22. g3 {[%clk 0:02:00]}  Bf6 {[%clk 0:01:52]} 23. Ng6 {[%clk 0:02:01]}  d4 {[%clk 0:01:43]} 24. Nc5 {[%clk 0:01:59]}  Ne5 {[%clk 0:01:10]} 25. Rxe5 {[%clk 0:01:25]}  Bxe5 {[%clk 0:01:05]} 26. Ne7+ {[%clk 0:01:25]}  Kf7 {[%clk 0:01:02]} 27. Nxc8 {[%clk 0:01:25]}  Rxc8 {[%clk 0:00:59]} 28. Nxb7 {[%clk 0:01:25]}  g5 {[%clk 0:00:46]} 29. f4 {[%clk 0:01:18]}  gxf4 {[%clk 0:00:39]} 30. gxf4 {[%clk 0:01:19]}  Rc7 {[%clk 0:00:20]} 31. fxe5 {[%clk 0:01:14]}  Rxb7 {[%clk 0:00:21]} 32. Rxd4 {[%clk 0:01:15]}  Ke6 {[%clk 0:00:20]} 33. Ra4 {[%clk 0:01:14]}  Rh7 {[%clk 0:00:17]} 34. Rxa6+ {[%clk 0:01:06]}  Kxe5 {[%clk 0:00:17]} 35. Rc6 {[%clk 0:01:05]}  h4 {[%clk 0:00:17]} 36. Rc1 {[%clk 0:01:05]}  h3 {[%clk 0:00:18]} 37. b4 {[%clk 0:01:02]}  h2 {[%clk 0:00:17]} 38. Rh1 {[%clk 0:01:03]}  Kf4 {[%clk 0:00:16]} 39. Kb2 {[%clk 0:01:03]}  Kg3 {[%clk 0:00:16]} 40. b5 {[%clk 0:01:03]}  Kg2 {[%clk 0:00:14]} 41. Rxh2+ {[%clk 0:01:04]}  Rxh2 {[%clk 0:00:09]} 42. Kc3 {[%clk 0:01:00]}  Kf3 {[%clk 0:00:07]} 43. a4 {[%clk 0:00:56]}  Ke4 {[%clk 0:00:07]} 44. b6 {[%clk 0:00:51]}  Kd5 {[%clk 0:00:06]} 45. b7 {[%clk 0:00:43]}  Rh8 {[%clk 0:00:05]} 46. a5 {[%clk 0:00:44]}  Kc6 {[%clk 0:00:06]} 47. a6 {[%clk 0:00:45]}  Kb6 {[%clk 0:00:06]} 48. Kc4 {[%clk 0:00:45]}  Kxa6 {[%clk 0:00:07]} 49. Kc5 {[%clk 0:00:42]}  Kxb7 {[%clk 0:00:07]} 0-1


[Site "https://www.chess.com"]

[Event "Titled Tuesday Blitz July 25 Late 2023"]
[White "Sivakumar, Shaaketh"]
[Black "Baches Garcia, Guillermo"]
[WhiteFideId "30940176"]
[BlackFideId "2209764"]
[WhiteElo "2580"]
[BlackElo "2432"]
[Result "1-0"]
[Round "3"]
[TimeControl "180+2"]
[Date "2023.07.25"]
[WhiteClock "0:00:35"]
[BlackClock "0:00:00"]
[Board "96"]

1. e4 {[%clk 0:03:00]}  c5 {[%clk 0:03:00]} 2. Nf3 {[%clk 0:02:59]}  d6 {[%clk 0:03:00]} 3. d4 {[%clk 0:02:58]}  cxd4 {[%clk 0:03:01]} 4. Qxd4 {[%clk 0:02:59]}  Nc6 {[%clk 0:03:00]} 5. Bb5 {[%clk 0:02:59]}  a6 {[%clk 0:03:01]} 6. Bxc6+ {[%clk 0:02:55]}  bxc6 {[%clk 0:03:02]} 7. c4 {[%clk 0:02:55]}  e5 {[%clk 0:03:01]} 8. Qd3 {[%clk 0:02:53]}  Qc7 {[%clk 0:03:01]} 9. Nc3 {[%clk 0:02:53]}  Be7 {[%clk 0:03:01]} 10. Be3 {[%clk 0:02:53]}  Nf6 {[%clk 0:02:58]} 11. h3 {[%clk 0:02:53]}  O-O {[%clk 0:02:58]} 12. O-O {[%clk 0:02:53]}  Be6 {[%clk 0:02:51]} 13. Rac1 {[%clk 0:02:52]}  Nd7 {[%clk 0:02:45]} 14. b3 {[%clk 0:02:49]}  Nc5 {[%clk 0:02:43]} 15. Qc2 {[%clk 0:02:33]}  f5 {[%clk 0:02:38]} 16. exf5 {[%clk 0:02:31]}  Bxf5 {[%clk 0:02:38]} 17. Qe2 {[%clk 0:02:32]}  Bd3 {[%clk 0:02:37]} 18. Qd2 {[%clk 0:02:30]}  Bxf1 {[%clk 0:02:36]} 19. Rxf1 {[%clk 0:02:31]}  Ne6 {[%clk 0:02:29]} 20. Rd1 {[%clk 0:02:31]}  Nf4 {[%clk 0:02:27]} 21. Ne1 {[%clk 0:02:28]}  Rf6 {[%clk 0:02:23]} 22. Ne4 {[%clk 0:02:27]}  Rg6 {[%clk 0:02:21]} 23. Bxf4 {[%clk 0:02:26]}  exf4 {[%clk 0:02:20]} 24. Qxf4 {[%clk 0:02:27]}  Rf8 {[%clk 0:02:17]} 25. Qd2 {[%clk 0:02:27]}  Qa7 {[%clk 0:02:02]} 26. Kf1 {[%clk 0:02:22]}  Re6 {[%clk 0:01:56]} 27. Ng3 {[%clk 0:02:17]}  Bh4 {[%clk 0:01:51]} 28. Nh1 {[%clk 0:02:08]}  Qf7 {[%clk 0:01:34]} 29. Nf3 {[%clk 0:02:08]}  Bd8 {[%clk 0:01:30]} 30. Ng3 {[%clk 0:02:07]}  Bb6 {[%clk 0:01:27]} 31. Qc3 {[%clk 0:01:58]}  h6 {[%clk 0:01:19]} 32. Rd2 {[%clk 0:01:59]}  Bc5 {[%clk 0:01:15]} 33. Qc2 {[%clk 0:01:54]}  Qe7 {[%clk 0:01:09]} 34. Rd1 {[%clk 0:01:52]}  Ref6 {[%clk 0:01:04]} 35. Qc3 {[%clk 0:01:50]}  Qa7 {[%clk 0:01:01]} 36. Ne4 {[%clk 0:01:47]}  Re6 {[%clk 0:00:57]} 37. Qd3 {[%clk 0:01:44]}  Rfe8 {[%clk 0:00:54]} 38. Nfd2 {[%clk 0:01:43]}  Bb4 {[%clk 0:00:46]} 39. Ng3 {[%clk 0:01:33]}  Bxd2 {[%clk 0:00:39]} 40. Qxd2 {[%clk 0:01:34]}  Rf8 {[%clk 0:00:37]} 41. Kg1 {[%clk 0:01:28]}  Ref6 {[%clk 0:00:34]} 42. Ne4 {[%clk 0:01:28]}  Rf4 {[%clk 0:00:33]} 43. Re1 {[%clk 0:01:26]}  Qe7 {[%clk 0:00:31]} 44. f3 {[%clk 0:01:20]}  Qe5 {[%clk 0:00:24]} 45. Qxd6 {[%clk 0:01:17]}  Qxd6 {[%clk 0:00:21]} 46. Nxd6 {[%clk 0:01:18]}  Rd4 {[%clk 0:00:20]} 47. Ne4 {[%clk 0:01:17]}  a5 {[%clk 0:00:19]} 48. Kf2 {[%clk 0:01:14]}  a4 {[%clk 0:00:19]} 49. Re2 {[%clk 0:01:09]}  axb3 {[%clk 0:00:19]} 50. axb3 {[%clk 0:01:09]}  Rb8 {[%clk 0:00:17]} 51. Nc5 {[%clk 0:01:09]}  Rd1 {[%clk 0:00:15]} 52. Re7 {[%clk 0:01:06]}  Rbd8 {[%clk 0:00:14]} 53. Ne6 {[%clk 0:01:04]}  R8d7 {[%clk 0:00:14]} 54. Rxd7 {[%clk 0:00:57]}  Rxd7 {[%clk 0:00:15]} 55. Nc5 {[%clk 0:00:56]}  Ra7 {[%clk 0:00:15]} 56. g4 {[%clk 0:00:55]}  Kf7 {[%clk 0:00:15]} 57. Ke3 {[%clk 0:00:54]}  Ke7 {[%clk 0:00:15]} 58. h4 {[%clk 0:00:54]}  Kd6 {[%clk 0:00:15]} 59. Ne4+ {[%clk 0:00:55]}  Ke5 {[%clk 0:00:15]} 60. f4+ {[%clk 0:00:55]}  Ke6 {[%clk 0:00:13]} 61. Kd4 {[%clk 0:00:56]}  Ra1 {[%clk 0:00:13]} 62. f5+ {[%clk 0:00:56]}  Kd7 {[%clk 0:00:13]} 63. g5 {[%clk 0:00:53]}  hxg5 {[%clk 0:00:13]} 64. hxg5 {[%clk 0:00:54]}  Rf1 {[%clk 0:00:13]} 65. f6 {[%clk 0:00:54]}  gxf6 {[%clk 0:00:14]} 66. gxf6 {[%clk 0:00:55]}  Ke6 {[%clk 0:00:14]} 67. Kc5 {[%clk 0:00:54]}  Ke5 {[%clk 0:00:14]} 68. Nd6 {[%clk 0:00:37]}  Rxf6 {[%clk 0:00:13]} 69. Nb7 {[%clk 0:00:38]}  Rf3 {[%clk 0:00:12]} 70. b4 {[%clk 0:00:36]}  Rf6 {[%clk 0:00:12]} 71. Na5 {[%clk 0:00:36]}  Ke6 {[%clk 0:00:12]} 72. Kxc6 {[%clk 0:00:36]}  Ke7+ {[%clk 0:00:11]} 73. Kc7 {[%clk 0:00:35]}  Rf4 {[%clk 0:00:11]} 74. b5 {[%clk 0:00:35]}  Ke6 {[%clk 0:00:10]} 75. b6 {[%clk 0:00:34]}  Rf7+ {[%clk 0:00:10]} 76. Kc6 {[%clk 0:00:34]}  Ke5 {[%clk 0:00:09]} 77. b7 {[%clk 0:00:34]}  Rf8 {[%clk 0:00:08]} 78. Kc7 {[%clk 0:00:33]}  Kd4 {[%clk 0:00:09]} 79. b8=Q {[%clk 0:00:33]}  Rxb8 {[%clk 0:00:09]} 80. Kxb8 {[%clk 0:00:34]}  Kc5 {[%clk 0:00:09]} 81. Kc7 {[%clk 0:00:34]}  Kb4 {[%clk 0:00:00]} 82. Kb6 {[%clk 0:00:35]} 1-0


[Site "https://www.chess.com"]

[Event "Titled Tuesday Blitz July 25 Late 2023"]
[White "Medina Paz, Miguel"]
[Black "Sztokbant, Bernardo Vainzoff"]
[WhiteFideId "7300379"]
[BlackFideId "2115956"]
[WhiteElo "2576"]
[BlackElo "2428"]
[Result "1-0"]
[Round "3"]
[TimeControl "180+2"]
[Date "2023.07.25"]
[WhiteClock "0:01:33"]
[BlackClock "0:00:30"]
[Board "99"]

1. e4 {[%clk 0:02:55]}  c5 {[%clk 0:02:59]} 2. Nf3 {[%clk 0:02:55]}  Nc6 {[%clk 0:02:58]} 3. d4 {[%clk 0:02:54]}  cxd4 {[%clk 0:02:59]} 4. Nxd4 {[%clk 0:02:54]}  Nf6 {[%clk 0:02:57]} 5. Nc3 {[%clk 0:02:54]}  e5 {[%clk 0:02:57]} 6. Ndb5 {[%clk 0:02:55]}  d6 {[%clk 0:02:57]} 7. Bg5 {[%clk 0:02:55]}  a6 {[%clk 0:02:57]} 8. Na3 {[%clk 0:02:55]}  b5 {[%clk 0:02:57]} 9. Bxf6 {[%clk 0:02:56]}  gxf6 {[%clk 0:02:56]} 10. Nd5 {[%clk 0:02:56]}  Be6 {[%clk 0:02:55]} 11. c3 {[%clk 0:02:55]}  Bg7 {[%clk 0:02:49]} 12. Nc2 {[%clk 0:02:53]}  f5 {[%clk 0:02:49]} 13. exf5 {[%clk 0:02:53]}  Bxf5 {[%clk 0:02:48]} 14. Nce3 {[%clk 0:02:52]}  Be6 {[%clk 0:02:48]} 15. Bd3 {[%clk 0:02:52]}  O-O {[%clk 0:02:44]} 16. Qh5 {[%clk 0:02:51]}  h6 {[%clk 0:02:41]} 17. Be4 {[%clk 0:02:49]}  Rc8 {[%clk 0:02:38]} 18. Rd1 {[%clk 0:02:43]}  Qg5 {[%clk 0:02:38]} 19. Qxg5 {[%clk 0:02:42]}  hxg5 {[%clk 0:02:39]} 20. Nf5 {[%clk 0:02:41]}  Rcd8 {[%clk 0:02:23]} 21. g4 {[%clk 0:02:33]}  Bxf5 {[%clk 0:02:12]} 22. Bxf5 {[%clk 0:02:27]}  Rfe8 {[%clk 0:02:12]} 23. h4 {[%clk 0:02:27]}  gxh4 {[%clk 0:02:09]} 24. Rxh4 {[%clk 0:02:25]}  Ne7 {[%clk 0:02:03]} 25. Be4 {[%clk 0:02:22]}  Nxd5 {[%clk 0:02:02]} 26. Rxd5 {[%clk 0:02:21]}  Re6 {[%clk 0:01:50]} 27. g5 {[%clk 0:02:19]}  Kf8 {[%clk 0:01:48]} 28. Ke2 {[%clk 0:02:19]}  Re7 {[%clk 0:01:45]} 29. Bf5 {[%clk 0:02:12]}  Rc7 {[%clk 0:01:44]} 30. Kd3 {[%clk 0:02:10]}  Rc5 {[%clk 0:01:42]} 31. Be4 {[%clk 0:02:06]}  Rxd5+ {[%clk 0:01:35]} 32. Bxd5 {[%clk 0:02:06]}  Rc8 {[%clk 0:01:32]} 33. a4 {[%clk 0:02:04]}  Rc5 {[%clk 0:01:30]} 34. Ke4 {[%clk 0:01:51]}  bxa4 {[%clk 0:01:27]} 35. c4 {[%clk 0:01:51]}  Rc8 {[%clk 0:01:24]} 36. Rh3 {[%clk 0:01:51]}  Ke8 {[%clk 0:00:40]} 37. Rf3 {[%clk 0:01:46]}  Rc7 {[%clk 0:00:40]} 38. Ra3 {[%clk 0:01:45]}  Rc5 {[%clk 0:00:34]} 39. Rxa4 {[%clk 0:01:44]}  a5 {[%clk 0:00:34]} 40. b4 {[%clk 0:01:45]}  axb4 {[%clk 0:00:32]} 41. Rxb4 {[%clk 0:01:41]}  Rc7 {[%clk 0:00:32]} 42. Rb8+ {[%clk 0:01:37]}  Ke7 {[%clk 0:00:32]} 43. Ra8 {[%clk 0:01:36]}  Bf8 {[%clk 0:00:31]} 44. Kf5 {[%clk 0:01:36]}  Rd7 {[%clk 0:00:30]} 45. Bc6 {[%clk 0:01:34]}  Rc7 {[%clk 0:00:30]} 46. Re8# {[%clk 0:01:33]} 1-0


[Site "https://www.chess.com"]